Cogmind - Beta 11 @@@ ROGUE MODE // 2022.04.16 @ 15:47:36 Player: RNGesus Result: Destroyed by 8R-AWN with 8R-AWN's Boregun Performance ------------- Evolutions (0) 0 Regions Visited (3) 600 Robots Destroyed (24) 120 Value Destroyed (431) 431 Prototype IDs (2) 40 Alien Tech Used (0) 0 Bonus (0) 0 TOTAL SCORE: 1191 Bonus ------- None Cogmind --------- Core Integrity 0/250 Matter 7/300 Energy 250/250 System Corruption 5% Temperature Cool (0) Movement Treading (320) Ox2 Location -10/Exiles Parts ------- > --- POWER (1) -------- Ion Engine > --- PROPULSION (2) --- Light Treads Light Treads > --- UTILITY (2) ------ Huge Storage Unit Improved Light Armor Plating > --- WEAPON (2) ------- Autogun > --- INVENTORY (25) --- Light Treads Light Treads Light Treads Cooling System Cooling System Propulsion Shielding Improved Light Armor Plating Assault Rifle Light Assault Rifle Light Assault Rifle Autogun Autogun Grenade Launcher Mining Claw Mining Claw Peak State ------------ > --- POWER ------------ Ion Engine > --- PROPULSION ------- Light Treads Light Treads > --- UTILITY ---------- Huge Storage Unit Improved Light Armor Plating > --- WEAPON ----------- Autogun Autogun > --- INVENTORY -------- Ion Engine Light Treads Light Treads Light Treads Cooling System Cooling System Propulsion Shielding Improved Light Armor Plating Assault Rifle Light Assault Rifle Light Assault Rifle Autogun Autogun Grenade Launcher Mining Claw Mining Claw [Rating: 13] Favorites ----------- Power Ion Engine Engine Ion Engine Propulsion Light Treads Treads Light Treads Wheel Wheel Utility Huge Storage Unit Storage Huge Storage Unit Protection Light Armor Plating Weapon Light Assault Rifle Energy Gun Medium Laser Ballistic Gun Light Assault Rifle Launcher Grenade Launcher Slashing Weapon Mining Claw Build | -11 -10 -10 -10 ------- Run | Scr Mat Min Exi Slots Evolved . | . . . . Power . | . . . . Propulsion . | . . . . Utility . | . . . . Weapon . | . . . . Parts Attached 28 | 7 9 6 6 Power 2 | 1 . . 1 Engine 2 | 1 . . 1 Core . | . . . . Reactor . | . . . . Propulsion 5 | 2 1 1 1 Treads 4 | 2 . 1 1 Leg . | . . . . Wheel 1 | . 1 . . Hover . | . . . . Flight . | . . . . Utility 4 | 1 2 . 1 Device . | . . . . Storage 2 | 1 1 . . Processor . | . . . . Hackware . | . . . . Protection 2 | . 1 . 1 Artifact . | . . . . Weapon 17 | 3 6 5 3 Energy Gun 2 | 2 . . . Energy Cannon . | . . . . Ballistic Gun 8 | 1 3 3 1 Ballistic Cannon . | . . . . Launcher 5 | . 1 2 2 Special Weapon . | . . . . Impact Weapon . | . . . . Slashing Weapon 2 | . 2 . . Piercing Weapon . | . . . . Special Melee Weapon . | . . . . Unidentified Prototypes . | . . . . Parts Lost 6 | . 1 1 4 Power 1 | . . . 1 Propulsion 2 | . . 1 1 Utility 1 | . . . 1 Weapon 2 | . 1 . 1 Highest Loss Streak 2 | . 1 1 2 To Critical Strikes 2 | . . . 2 Average Slot Usage (%) 91 | . 89 99 99 Engine 14 | . 14 14 14 Treads 15 | . 15 13 17 Wheel 12 | . 12 14 10 Storage 14 | . 14 14 14 Protection 6 | . 4 14 14 Energy Gun 3 | . 4 . . Ballistic Gun 23 | . 21 27 27 Slashing Weapon 1 | . 1 . . Naked Turns . | . . . . Heaviest Build 94 | 14 93 94 94 Greatest Support 40 | 40 40 10 40 Greatest Overweight (x) 9 | 4 9 9 9 Average Overweight (x) 7 | . 7 9 8 Largest Inventory Capacity 25 | 8 25 25 25 Average Capacity 23 | 7 22 25 25 Most Carried 22 | 3 19 19 22 Average Carried 15 | 1 14 18 18 Final Capacity 25 | 8 25 25 25 Final Carried 19 | 3 18 19 15 Class Distribution -------------------- 100% | Mutant Dominant Class ---------------- Mutant | -10/Materials Mutant | -10/Mines Mutant | -10/Exiles Resources | -11 -10 -10 -10 ----------- Run | Scr Mat Min Exi Matter Collected 701 | 101 365 235 . Remotely . | . . . . Salvage Created 749 | . 602 103 44 Parts 57 | . 44 13 . Haulers Intercepted 2 | . 2 . . Recyclers Shooed 4 | . 2 2 . Parts Field Recycled . | . . . . Retrieved Matter . | . . . . Parts Self-Destructed . | . . . . Prevented . | . . . . Kills | -11 -10 -10 -10 ------- Run | Scr Mat Min Exi Combat Hostiles Destroyed 29 | . 11 11 7 Guns 11 | . 8 3 . AOE 18 | . 3 8 7 Classes Destroyed 8 | . 5 3 . Worker 1 | . . 1 . Tunneler 2 | . . 2 . Hauler 2 | . 2 . . Recycler 2 | . 2 . . Operator 2 | . 2 . . Swarmer 7 | . 3 4 . Grunt 8 | . 8 . . Assembled 14 | . . 7 7 Best Kill Streak 7 | . 3 5 7 Combat Bots Only 7 | . 3 5 7 Max Kills in Single Turn 3 | . 1 3 3 Gunslinging . | . . . . Exploded 3 | . 1 3 3 Melee . | . . . . Uniques/NPCs Destroyed . | . . . . Combat | -11 -10 -10 -10 -------- Run | Scr Mat Min Exi Damage Taken 1465 | . 557 232 676 Core 262 | . 109 45 108 Absorbed by Shields . | . . . . Core Remaining (%) 100 | 100 . . . Volleys Fired 111 | . 62 21 28 Largest 2 | . 2 2 2 Hottest 70 | . 70 46 46 Shots Fired 204 | . 119 34 51 Gun 187 | . 115 26 46 Cannon . | . . . . Launcher 17 | . 4 8 5 Special . | . . . . Kinetic 143 | . 71 26 46 Thermal 44 | . 44 . . Explosive 17 | . 4 8 5 Electromagnetic . | . . . . Robot Hit Streak 11 | . 11 4 5 Robot Miss Streak 3 | . 3 2 3 Penetration Max . | . . . . Secondary Targets 2 | . 2 . . Max Gunslinging Chain 1 | . 1 . . Shots Hit Robots 125 | . 75 16 34 Core Hits 78 | . 35 22 21 Critical Kills 1 | . 1 . . Critical Parts Destroyed . | . . . . Critical Strikes 6 | . 6 . . Burn 5 | . 5 . . Destroy 1 | . 1 . . Melee Attacks 11 | . 11 . . Impact . | . . . . Slashing 11 | . 11 . . Piercing . | . . . . Sneak Attacks . | . . . . Combat Hostiles . | . . . . Follow-up Attacks . | . . . . Damage Inflicted 2498 | . 914 846 738 Guns 1398 | . 724 218 456 Cannons . | . . . . Explosions 1100 | . 190 628 282 Melee . | . . . . Ramming . | . . . . Kinetic 1086 | . 412 218 456 Thermal 312 | . 312 . . Explosive 1100 | . 190 628 282 Electromagnetic . | . . . . Impact . | . . . . Slashing . | . . . . Piercing . | . . . . Highest Corruption 5 | . . 5 5 Average Corruption 5 | . . 5 5 Corruption Purged . | . . . . Corruption Blocked . | . . . . Effects 14 | . . 6 8 Message Errors 2 | . . 1 1 Matter Fused 3 | . . . 3 Heat Flow Errors 1 | . . 1 . Energy Discharges 3 | . . 3 . Parts Rejected 1 | . . . 1 Data Loss (minor) 1 | . . 1 . Data Loss (major) 1 | . . . 1 Misfires 1 | . . . 1 Alerts 1 | . . . 1 Overload Shots . | . . . . Overflow Damage . | . . . . Projectiles . | . . . . Explosions . | . . . . Melee . | . . . . Knockbacks . | . . . . Impact . | . . . . Kinetic . | . . . . Secondary . | . . . . Self-Inflicted Damage 84 | . 40 34 10 Shots 3 | . 1 1 1 Rammed . | . . . . Targets Rammed . | . . . . Kicked . | . . . . Crushed . | . . . . Highest Temperature 158 | . 158 117 26 Average Temperature 41 | . 55 22 11 Received Heat Transfer 243 | . 243 . . Siege Activations . | . . . . Robots Corrupted . | . . . . Combat Hostiles . | . . . . Parts Fried . | . . . . Impact Corruptions . | . . . . Robots Melted . | . . . . Combat Hostiles . | . . . . Parts Melted 1 | . 1 . . Heat Transferred 1295 | . 1295 . . Parts Sabotaged . | . . . . Parts Stolen . | . . . . Parts Stripped . | . . . . Power Chain Reactions . | . . . . Missiles Intercepted . | . . . . Alert | -11 -10 -10 -10 ------- Run | Scr Mat Min Exi Peak Influence 225 | . 225 221 . Initial 9 | . . 9 . Average 69 | . 61 134 . Maximum Alert Level 1 | . 1 1 . Low Security (%) 87 | 100 92 48 . Level 1 12 | . 7 51 . Level 2 . | . . . . Level 3 . | . . . . Level 4 . | . . . . Level 5 . | . . . . High Security . | . . . . Max Security . | . . . . Squads Dispatched 3 | . 3 . . Investigation 1 | . 1 . . Extermination . | . . . . Reinforcement 2 | . 2 . . Assault . | . . . . Garrison . | . . . . Intercept . | . . . . Searches Triggered . | . . . . Construction Impeded . | . . . . Haulers Reinforced . | . . . . Active Scanning Responses . | . . . . Cargo Convoy Interrupts . | . . . . Stealth | -11 -10 -10 -10 --------- Run | Scr Mat Min Exi Distress Signals 3 | . 3 . . Communications Jammed . | . . . . Distress Signals . | . . . . Times Spotted 48 | . 28 13 7 Peak Tracking Total 10 | . 6 4 10 Tactical Retreats 4 | . 1 3 . Traps | -11 -10 -10 -10 ------- Run | Scr Mat Min Exi Traps Triggered 1 | . 1 . . Indirectly . | . . . . Trap Hack Attempts . | . . . . Triggered . | . . . . Disarmed . | . . . . Reprogrammed . | . . . . Reused . | . . . . Traps Extracted . | . . . . Installed . | . . . . Triggered . | . . . . Machines | -11 -10 -10 -10 ---------- Run | Scr Mat Min Exi Machines Disabled 2 | . . . 2 Max in Single Turn 1 | . . . 1 Machines Sabotaged . | . . . . Garrisons Compromised . | . . . . Overloaded Fab Kills . | . . . . Hacking | -11 -10 -10 -10 --------- Run | Scr Mat Min Exi Machines Accessed 1 | . 1 . . Terminals 1 | . 1 . . Fabricators . | . . . . Repair Stations . | . . . . Recycling Units . | . . . . Scanalyzers . | . . . . Garrison Access . | . . . . Total Hacks 1 | . 1 . . Successful 1 | . 1 . . Failed . | . . . . Catastrophic . | . . . . Database Lockouts . | . . . . Manual . | . . . . Terminals 1 | . 1 . . Fabricators . | . . . . Repair Stations . | . . . . Recycling Units . | . . . . Scanalyzers . | . . . . Garrison Access . | . . . . Terminal Hacks 1 | . 1 . . Prototype ID Bank 1 | . 1 . . Fabricator Hacks . | . . . . Repair Station Hacks . | . . . . Recycling Unit Hacks . | . . . . Scanalyzer . | . . . . Garrison Access Hacks . | . . . . Unauthorized Hacks . | . . . . Terminals . | . . . . Fabricators . | . . . . Repair Stations . | . . . . Recycling Units . | . . . . Scanalyzers . | . . . . Garrison Access . | . . . . Data Cores Recovered . | . . . . Used . | . . . . Hacking Detections 1 | . 1 . . Full Trace Events . | . . . . Feedback Events . | . . . . Feedback Blocked . | . . . . Robot Schematics Acquired . | . . . . Robots Built . | . . . . Authchips . | . . . . Time . | . . . . Total Robot Build Rating . | . . . . Part Schematics Acquired . | . . . . Parts Built . | . . . . Authchips . | . . . . Time . | . . . . Total Part Build Rating . | . . . . Parts Repaired . | . . . . Time . | . . . . Parts Recycled . | . . . . Recycled Matter . | . . . . Retrieved Matter . | . . . . Retrieved Components . | . . . . Parts Scanalyzed . | . . . . Part Schematics Acquired . | . . . . Parts Damaged . | . . . . Bothacking | -11 -10 -10 -10 ------------ Run | Scr Mat Min Exi Used RIF Installer . | . . . . Robots Hacked . | . . . . Non-combat . | . . . . Combat . | . . . . Robot Hacks Applied . | . . . . Relay Couplers Released . | . . . . Fabnet Peak Effective % . | . . . . Robots Rewired . | . . . . Allies Hacked . | . . . . Hacks Repelled . | . . . . Allies | -11 -10 -10 -10 -------- Run | Scr Mat Min Exi Total Allies . | . . . . Largest Group . | . . . . Highest-Rated Group . | . . . . Highest-Rated Ally . | . . . . Total Orders . | . . . . Ally Attacks . | . . . . Total Damage . | . . . . Kills . | . . . . Allies Corrupted . | . . . . Allies Melted . | . . . . Intel | -11 -10 -10 -10 ------- Run | Scr Mat Min Exi Robot Analysis Total . | . . . . Derelict Logs Recovered . | . . . . Drone Launches . | . . . . Drone Recoveries . | . . . . Exploration | -11 -10 -10 -10 ------------- Run | Scr Mat Min Exi Turns Passed 2566 | 62 1894 287 323 Spaces Moved 1066 | 34 820 104 108 Core 12 | 12 . . . Treads 112 | 22 87 . 3 Legs . | . . . . Wheels 942 | . 733 104 105 Hover . | . . . . Flight . | . . . . Fastest Speed 50 | 50 160 215 215 Average Speed 201 | 146 199 215 217 Slowest Speed 320 | 250 215 215 320 Overloaded Moves . | . . . . Propulsion Burnouts . | . . . . Robots Hopped . | . . . . Cave-ins Triggered . | . . . . Exploration Rate (%) 42 | 3 97 37 34 Regions Visited 3 Branch Regions 2 Pre-discovered Areas . | . . . . Known Exits Taken . | . . . . Unknown Exits Taken 3 | 1 1 1 . Scrap Searched 1 | . . 1 . Spaces Dug 24 | . 24 . . Terrain Destroyed 105 | . 39 48 18 Melee 4 | . 4 . . Projectile . | . . . . AOE 101 | . 35 48 18 Terrain Rammed . | . . . . Walls Destroyed . | . . . . Machines Disabled . | . . . . Actions | -11 -10 -10 -10 --------- Run | Scr Mat Min Exi Total 1292 | 44 955 136 157 Wait 35 | . 22 4 9 Move 1063 | 33 819 103 108 Hop . | . . . . Pick Up 31 | 3 23 2 3 Fast Attach 7 | 6 1 . . Attach 9 | 1 3 1 4 Detach 3 | 1 2 . . Swap 12 | . 5 5 2 Drop 10 | . 7 . 3 Fire 111 | . 62 21 28 Melee 11 | . 11 . . Ram . | . . . . Kick . | . . . . Crush . | . . . . Escape Stasis . | . . . . Rewire . | . . . . Trap . | . . . . Miscellaneous . | . . . . Route ------- -11/Scrapyard -10/Materials (discovered 4 exits: [*Mat x3] / [*Min]) -10/Mines (discovered 3 exits: [*Mat x2] / [*Exi]) -10/Exiles History --------- Turn | Location | Event 19 | -11/Scrapyard | Discovered new exit (range 16) 63 | -11/Scrapyard | Entered Materials 95 | -10/Materials | Discovered new exit (range 10) 310 | -10/Materials | Build established: Mutant 425 | -10/Materials | Discovered new exit (range 15) 1218 | -10/Materials | Discovered new exit (range 16) 1387 | -10/Materials | Discovered new exit (range 14) 1957 | -10/Materials | Entered Mines 1971 | -10/Mines | Assembled infested the area 2007 | -10/Mines | Core integrity fell below 50% 2163 | -10/Mines | Discovered new exit (range 5) 2199 | -10/Mines | Discovered new exit (range 9) 2235 | -10/Mines | Deemed a non-threat by the Exiles lab entrance 2235 | -10/Mines | Discovered new exit (range 5) 2244 | -10/Mines | Entered Exiles 2359 | -10/Exiles | Met 8R-AWN 2395 | -10/Exiles | Met EX-HEX 2462 | -10/Exiles | Attacked by the Exiles 2506 | -10/Exiles | Destroyed 7 combat bots 2522 | -10/Exiles | Core integrity fell below 20% 2567 | -10/Exiles | Destroyed by 8R-AWN with 8R-AWN's Boregun Last Messages --------------- 02528_ Penetrated by HV Slug. 02530_ Critical hit (Destroy). 02530_ Ion Engine destroyed. 02530_ Penetrated by HV Slug. 02532_ HV Slug penetrates Earth. 02536_ Penetrated by HV Slug. 02536_ HV Slug penetrates Earth. 02538_ Penetrated by HV Slug. 02542_ HV Slug penetrates Earth. 02542_ HV Slug penetrates Wall. 02547_ Penetrated by HV Slug. 02547_ HV Slug penetrates Earth. 02551_ Penetrated by HV Slug. 02557_ HV Slug penetrates Earth. 02557_ Penetrated by HV Slug. 02557_ HV Slug penetrates Earth. 02563_ Penetrated by HV Slug. 02567_ Critical hit (Destroy). 02567_ Autogun destroyed. 02567_ Penetrated by HV Slug. Map ----- +----------------------------------------------------+ | ?????????????????????????????????????????????????? | | ?????????????????????????????????????????????????? | | ?????????????????????????????????????????????????? | | ?????????????????????????????????????????????????? | | ?????????????????????????????????????????????????? | | ?????????????????????????????????????????????????? | | ?????????????????????????????????????????????????? | | ???????????????????????? ????????????????????????? | | ?????????????????????? ???????????????????????? | | ???????????????????? ???????????????????????? | | ????????????????????# ???????????????????????? | | ????????????????????# ???????????????????????? | | ????????????????????# #?#????????????????????? | | ????????????????????# ##;"""""???????????????? | | ????????????????????# # #""""""??????????????? | | ???????????????????## #;#"" """"?????????????? | | ???????????????????# """"?????????????? | | ???????????????????#" """?????????????? | | ???????????????????#" """?????????????? | | ???????????????????#" """?????????????? | | ???????????????????# """?????????????? | | ???????????????????# """#????????????? | | ????????????????????# ] """"????????????? | | ????????????????????# """#????????????? | | ????????????????????# "X" """?????????????? | | ????????????????????#" @ "" #????????????? | | ????????????????????#" """"""#????????????? | | ???????????????????##" #####???????????????? | | ??????????????????##"" %# #???????????????????? | | ?????????????????##"" g #??????????????????? | | ?????????????????"""" #??????????????????? | | ???????????????" " "" #?###########??????? | | ??????????????"" " ###"""""""""##?????? | | ????????????? " " """ """"##????? | | ??????????? "" " #????? | | ???????????? " """#????? | | ???????????? " "#????? | | ???????????? " "##???? | | ????????????? ""###?? | | ????????????? """""" """#?? | | ?????????????? ######""" "#?? | | ??????????????""#?????#####""" ##? | | ??????????????????????????##""" ## | | ???????????????????????????#"""" # | | ???????????????????????????#"" | | ????????????????????????????""" | | ??????????????????????????" | | ?????????????????????????? | | ?????????????????????????? | | ????????????????????????? # | +----------------------------------------------------+ Best States ------------- Heat Dissipation 25 Energy Generation 10 Energy Capacity 250 Matter Stores 300 Matter Capacity 300 Sight Range 16 Terrain Scan Density 10 Armor Coverage 150 Evasion (%) 40 Recoil Reduction 2 Item Schematics ----------------- None Robot Schematics ------------------ None Fabricated ------------ Nothing Alien Tech Used ----------------- None Achievements -------------- None Challenges ------------ None Game ------ Seed HeavyAccelerationDrive Manual? 0 Play Time 00:11:59 Cumulative 334.8 hours Start 2022.04.16 @ 15:37:30 End 2022.04.16 @ 15:47:36 Sessions 1 Manual Loads 0 Difficulty Rogue Special Mode None Game No. 490 Rogue 490 Adventurer 0 Explorer 0 Win Type - Total 6 Types 4/0/1/1/0/0/0/0/0 Lore% 81 Gallery% 84 Achievement% 66 Wizard Run 0 Options --------- ASCII 0 Keyboard 1 Movement Numpad Keybinds 0 Fullscreen 2 Font 24/Smallcaps Map View 76x50 Tactical HUD 1 Map Filters NONE Filters NONE Steam 1 RUN: 772a6d0c-d8b0-4bc4-a1dd-edd28e83f76e